fUSD/lending_fUSD_20240330
["ID","MTS","AMOUNT","RATE_DAILY","PERIOD"]
[321052788,1711828249908,-2087.79,0.00041095,4]
[321052789,1711828249920,-500.0,0.00041095,4]
[321052790,1711828249930,-551.94,0.00041095,4]
[321052791,1711828249940,-2433.96,0.00041095,4]
[321052792,1711828249950,-1101.74,0.00041095,4]
[321052793,1711828249960,-500.0,0.00041095,4]
[321052794,1711828249970,-500.0,0.00041095,4]
[321052795,1711828249980,-500.0,0.00041095,4]
[321052796,1711828249990,-500.0,0.00041095,4]
[321052797,1711828249999,-500.0,0.00041095,4]
[321052798,1711828250009,-500.0,0.00041095,4]
[321052799,1711828250019,-500.0,0.00041095,4]
[321052800,1711828250028,-500.0,0.00041095,4]
[321052801,1711828250038,-500.0,0.00041095,4]
[321052802,1711828250047,-500.0,0.00041095,4]
[321052803,1711828250057,-500.0,0.00041095,4]
[321052804,1711828250067,-500.0,0.00041095,4]
[321052805,1711828250077,-500.0,0.00041095,4]
[321052806,1711828250087,-2743.26,0.00041095,4]
[321052807,1711828250097,-2490.96,0.00041095,4]
[321052808,1711828250108,-691.17,0.00041095,4]
[321052809,1711828250117,-212.63367919,0.00041095,2]
[321052810,1711828250127,-500.0,0.00041095,4]
[321052811,1711828250137,-500.0,0.00041095,4]
[321052812,1711828250147,-538.20026476,0.00041095,4]
[321052813,1711828250157,-500.0,0.00041095,4]
[321052814,1711828250166,-500.0,0.00041095,4]
[321052815,1711828250176,-500.0,0.00041095,4]
[321052816,1711828250186,-500.0,0.00041095,4]
[321052817,1711828250196,-253.81032193,0.00041095,4]
[321052818,1711828250205,-500.0,0.00041095,4]
[321052819,1711828250215,-500.0,0.00041095,4]
[321052820,1711828250224,-526.1862541,0.00041095,4]
[321052821,1711828250234,-500.0,0.00041095,4]
[321052822,1711828250243,-500.0,0.00041095,4]
[321052823,1711828250252,-500.0,0.00041095,4]
[321052824,1711828250262,-656.49,0.00041095,4]
[321052825,1711828250271,-500.0,0.00041095,4]
[321052826,1711828250280,-3990.74,0.00041095,4]
[321052827,1711828250291,-500.0,0.00041095,4]
[321052828,1711828250301,-4121.83,0.00041095,4]
[321052829,1711828250310,-500.0,0.00041095,4]
[321052830,1711828250320,-500.0,0.00041095,4]
[321052831,1711828250329,-479.42041073,0.00041095,4]
[321052832,1711828250339,-500.0,0.00041095,4]
[321052833,1711828250348,-500.0,0.00041095,4]
[321052834,1711828250358,-500.0,0.00041095,4]
[321052835,1711828250369,-500.0,0.00041095,4]
[321052836,1711828250379,-3441.02402549,0.00041095,4]
[321052837,1711828260725,223.94252704,0.00024,2]
[321052838,1711828281533,151.52,0.00032272,2]
[321052850,1711828585923,589.22,0.00037607,2]
[321052851,1711828634007,250.0,0.00033,3]
[321052852,1711828635357,300.0,0.00035,3]
[321052857,1711828851027,220.79,0.00031283,2]
[321052859,1711828947063,72.23949895,0.00039,2]
[321052878,1711829308099,-2000.0,0.00036942,4]
[321052879,1711829309300,-534.72852423,0.00036942,4]
[321052880,1711829309320,-1465.27147577,0.00036943,4]
[321052881,1711829309811,-2000.0,0.00036943,4]
[321052882,1711829310311,-23.84899046,0.00036943,4]
[321052883,1711829310334,-559.75,0.00036945,2]
[321052884,1711829310355,-532.46,0.00038811,2]
[321052885,1711829310376,-500.0,0.00038823,2]
[321052886,1711829310397,-383.94100954,0.00038823,2]
[321052887,1711829310849,-124.11899046,0.00038823,2]
[321052888,1711829310870,-200.0,0.00038837,2]
[321052901,1711829350685,159.12,0.00038777,2]
[321052986,1711829432379,-167.63815212,0.00038856,2]
[321052987,1711829432388,-23027.2,0.00038937,2]
[321052988,1711829432398,-500.0,0.00038954,2]
[321052989,1711829432408,-1179.71,0.00038958,2]
[321052990,1711829432417,-800.0,0.00038959,2]
[321052991,1711829432428,-336.1,0.00038974,2]
[321052992,1711829432437,-415.74,0.0003899,2]
[321052993,1711829432447,-3302.33334658,0.00039,2]
[321052994,1711829432456,-471.38,0.00039007,2]
[321052995,1711829432466,-150.0,0.00039027,2]
[321052996,1711829432475,-1693.43178652,0.00039038,4]
[321052997,1711829432485,-197.22,0.00039082,15]
[321052998,1711829432495,-162.31,0.00039141,2]
[321052999,1711829432504,-165.73,0.00039147,2]
[321053000,1711829432514,-499.99,0.00039204,2]
[321053001,1711829432532,-559.75,0.00039209,2]
[321053002,1711829432544,-162.31,0.00039345,2]
[321053003,1711829432554,-200.0,0.00039435,2]
[321053004,1711829432563,-150.99,0.00039526,2]
[321053005,1711829432573,-162.31,0.00039549,2]
[321053006,1711829432583,-547.36,0.00039593,2]
[321053007,1711829432593,-358.0,0.00039752,2]
[321053008,1711829432603,-578.888,0.00039752,2]
[321053009,1711829432613,-213.0,0.00039752,2]
[321053010,1711829432622,-150.0,0.00039752,2]
[321053011,1711829432632,-162.31,0.00039753,2]
[321053012,1711829432641,-200.0,0.00039897,2]
[321053013,1711829432651,-175.65,0.00039932,2]
[321053014,1711829432661,-162.31,0.00039957,2]
[321053015,1711829432671,-1000.0,0.0004,2]
[321053016,1711829432681,-22063.93055245,0.0004,4]
[321053017,1711829432691,-692.33706181,0.0004,4]
[321053018,1711829432701,-57.52610054,0.00040161,2]
[321053097,1711829438476,-104.78389946,0.00040161,2]
[321053098,1711829438486,-5749.11439785,0.0004027,4]
[321053099,1711829438497,-1362.85766619,0.00040271,4]
[321053100,1711829438506,-214.27,0.00040285,2]
[321053101,1711829438517,-162.31,0.00040365,2]
[321053102,1711829438526,-214.27,0.00040487,2]
[321053103,1711829438536,-153.95963333,0.00040524,9]
[321053104,1711829438545,-498.58364075,0.00040524,2]
[321053105,1711829438554,-4777.0,0.00040524,2]
[321053106,1711829438564,-43018.0,0.00040524,2]
[321053107,1711829438806,-2314.275,0.00040524,2]
[321053108,1711829438819,-2443.0,0.00040524,2]
[321053109,1711829438828,-634.1713,0.00040524,7]
[321053110,1711829438838,-162.31,0.00040569,2]
[321053111,1711829438848,-300.0,0.000406,14]
[321053112,1711829438858,-494.26108956,0.000406,2]
[321053113,1711829438872,-163.86,0.00040614,2]
[321053114,1711829438881,-722.72958394,0.00040623,4]
[321053115,1711829438890,-649.44897716,0.00040623,4]
[321053116,1711829438901,-245000.0,0.00040624,2]
[321053117,1711829438911,-39792.9174,0.00040624,2]
[321053118,1711829438921,-100000.0,0.00040624,2]
[321053119,1711829438930,-700.0,0.000407,14]
[321053120,1711829438940,-498.58364074,0.0004071,2]
[321053121,1711829438950,-458.0,0.00040724,2]
[321053122,1711829438958,-962.0,0.00040724,2]
[321053123,1711829438968,-1226.0,0.00040724,2]
[321053124,1711829438977,-433.0,0.00040724,2]
[321053125,1711829438986,-252.897,0.00040724,2]
[321053126,1711829438995,-803.0,0.00040724,2]
[321053127,1711829439005,-605.0,0.00040724,2]
[321053128,1711829439015,-153.95963328,0.00040769,10]
[321053129,1711829439026,-162.31,0.00040773,2]
[321053130,1711829439036,-1100.0,0.000408,14]
[321053131,1711829439045,-498.58364074,0.00040896,2]
[321053132,1711829439054,-1500.0,0.000409,14]
[321053133,1711829439063,-162.31,0.00040977,2]
[321053134,1711829439073,-153.24384006,0.00040995,10]
[321053135,1711829439082,-7500.0,0.00040995,2]
[321053136,1711829439091,-559.31045954,0.00041,4]
[321053137,1711829439100,-3368.5161918,0.00041,2]
[321053138,1711829439110,-1700.20046963,0.00041,2]
[321053139,1711829439119,-150.72,0.00041,2]
[321053141,1711829439128,-153.95963328,0.00041013,10]
[321053144,1711829439137,-226.90571627,0.00041031,13]
[321053147,1711829439146,-498.58364074,0.00041082,2]
[321053150,1711829439155,-183.16911616,0.00041085,2]
[321053151,1711829439165,-150.72,0.00041085,2]
[321053152,1711829439174,-150.72,0.00041085,2]
[321053153,1711829439184,-150.72,0.00041085,2]
[321053154,1711829439195,-150.72,0.00041085,2]
[321053155,1711829439205,-150.72,0.00041085,2]
[321053156,1711829439214,-150.72,0.00041085,2]
[321053157,1711829439224,-161.38881811,0.00041092,2]
[321053158,1711829439234,-403.1819564,0.00041093,4]
[321053159,1711829439242,-2557.11204271,0.00041095,4]
[321053160,1711829439251,-155.48290048,0.00041095,4]
[321053161,1711829439262,-500.0,0.00041095,2]
[321053162,1711829439273,-500.0,0.00041095,4]
[321053163,1711829439284,-500.0,0.00041095,4]
[321053164,1711829439293,-500.0,0.00041095,4]
[321053165,1711829439301,-500.0,0.00041095,4]
[321053166,1711829439311,-500.0,0.00041095,4]
[321053167,1711829439321,-500.0,0.00041095,4]
[321053168,1711829439331,-300.0,0.00041095,2]
[321053169,1711829439341,-500.0,0.00041095,4]
[321053170,1711829439352,-173.19261192,0.00041095,4]
[321053171,1711829439362,-500.0,0.00041095,4]
[321053172,1711829439372,-500.0,0.00041095,4]
[321053173,1711829439382,-500.0,0.00041095,4]
[321053174,1711829439391,-500.0,0.00041095,15]
[321053175,1711829439400,-514.07745061,0.00041095,4]
[321053176,1711829439409,-540.48169947,0.00041095,4]
[321053177,1711829439418,-500.0,0.00041095,4]
[321053178,1711829439428,-500.0,0.00041095,4]
[321053179,1711829439437,-535.95369234,0.00041095,4]
[321053180,1711829439446,-500.0,0.00041095,4]
[321053181,1711829439456,-517.20057804,0.00041095,4]
[321053182,1711829439465,-500.0,0.00041095,4]
[321053183,1711829439475,-500.0,0.00041095,4]
[321053184,1711829439484,-500.0,0.00041095,4]
[321053185,1711829439493,-524.91043371,0.00041095,4]
[321053186,1711829439502,-500.0,0.00041095,4]
[321053187,1711829439511,-500.0,0.00041095,4]
[321053188,1711829439521,-541.22935843,0.00041095,4]
[321053189,1711829439531,-500.0,0.00041095,4]
[321053190,1711829439540,-500.0,0.00041095,4]
[321053191,1711829439549,-500.0,0.00041095,4]
[321053192,1711829439558,-500.0,0.00041095,4]
[321053193,1711829439567,-500.0,0.00041095,4]
[321053194,1711829439576,-500.0,0.00041095,4]
[321053195,1711829439587,-500.0,0.00041095,4]
[321053196,1711829439596,-500.0,0.00041095,4]
[321053197,1711829439605,-500.0,0.00041095,4]
[321053198,1711829439615,-500.0,0.00041095,4]
[321053199,1711829439625,-524.39002829,0.00041095,4]
[321053200,1711829439635,-520.6279918,0.00041095,4]
[321053201,1711829439645,-500.0,0.00041095,4]
[321053202,1711829439655,-500.0,0.00041095,4]
[321053203,1711829439664,-500.0,0.00041095,4]
[321053204,1711829439675,-500.0,0.00041095,4]
[321053205,1711829439685,-500.0,0.00041095,4]
[321053206,1711829439694,-500.0,0.00041095,4]
[321053207,1711829439703,-500.0,0.00041095,4]
[321053208,1711829439712,-500.0,0.00041095,4]
[321053209,1711829439721,-500.0,0.00041095,4]
[321053210,1711829439731,-500.0,0.00041095,4]
[321053211,1711829439742,-500.0,0.00041095,4]
[321053212,1711829439751,-500.0,0.00041095,4]
[321053213,1711829439761,-500.0,0.00041095,4]
[321053214,1711829439772,-514.57701744,0.00041095,4]
[321053215,1711829439782,-500.0,0.00041095,4]
[321053216,1711829439792,-500.0,0.00041095,4]
[321053217,1711829439801,-325.72597179,0.00041095,4]
[321053218,1711829439810,-500.0,0.00041095,4]
[321053219,1711829439820,-500.0,0.00041095,4]
[321053220,1711829439829,-679.58,0.00041095,4]
[321053221,1711829439839,-500.0,0.00041095,4]
[321053222,1711829439849,-529.70277274,0.00041095,4]
[321053223,1711829439860,-528.8083001,0.00041095,4]
[321053224,1711829439870,-500.0,0.00041095,4]
[321053225,1711829439880,-500.0,0.00041095,4]
[321053226,1711829439890,-500.0,0.00041095,4]
[321053227,1711829439902,-500.0,0.00041095,4]
[321053228,1711829439911,-500.0,0.00041095,4]
[321053229,1711829439921,-500.0,0.00041095,4]
[321053230,1711829439932,-500.0,0.00041095,4]
[321053231,1711829439942,-500.0,0.00041095,4]
[321053232,1711829439951,-500.0,0.00041095,4]
[321053233,1711829439960,-500.0,0.00041095,4]
[321053234,1711829439969,-484.49460541,0.00041095,4]
[321053235,1711829439978,-500.0,0.00041095,4]
[321053236,1711829439987,-500.0,0.00041095,4]
[321053237,1711829439996,-500.0,0.00041095,4]
[321053238,1711829440005,-500.0,0.00041095,4]
[321053239,1711829440014,-500.0,0.00041095,4]
[321053240,1711829440024,-500.0,0.00041095,4]
[321053241,1711829440034,-500.0,0.00041095,4]
[321053242,1711829440043,-10000.0,0.00041095,2]
[321053243,1711829440052,-500.0,0.00041095,4]
[321053244,1711829440061,-500.0,0.00041095,4]
[321053245,1711829440070,-500.0,0.00041095,4]
[321053246,1711829440080,-500.0,0.00041095,4]
[321053247,1711829440089,-500.0,0.00041095,4]
[321053248,1711829440098,-500.0,0.00041095,4]
[321053249,1711829440107,-500.0,0.00041095,4]
[321053250,1711829440116,-500.0,0.00041095,4]
[321053251,1711829440125,-500.0,0.00041095,4]
[321053252,1711829440134,-500.0,0.00041095,4]
[321053253,1711829440143,-500.0,0.00041095,4]
[321053254,1711829440153,-500.0,0.00041095,4]
[321053255,1711829440162,-500.0,0.00041095,4]
[321053256,1711829440172,-500.0,0.00041095,4]
[321053257,1711829440181,-500.0,0.00041095,4]
[321053258,1711829440190,-500.0,0.00041095,4]
[321053259,1711829440199,-500.0,0.00041095,4]
[321053260,1711829440209,-500.0,0.00041095,4]
[321053261,1711829440218,-319.50817066,0.00041095,4]
[321053262,1711829440227,-520.09094686,0.00041095,4]
[321053263,1711829440236,-500.0,0.00041095,4]
[321053264,1711829440245,-500.0,0.00041095,4]
[321053265,1711829440255,-500.0,0.00041095,4]
[321053266,1711829440263,-500.0,0.00041095,4]
[321053267,1711829440274,-500.0,0.00041095,4]
[321053268,1711829440284,-500.0,0.00041095,4]
[321053269,1711829440293,-500.0,0.00041095,4]
[321053270,1711829440302,-500.0,0.00041095,2]
[321053271,1711829440311,-500.0,0.00041095,4]
[321053273,1711829440320,-500.0,0.00041095,4]
[321053274,1711829440330,-500.0,0.00041095,4]
[321053275,1711829440339,-577.08647618,0.00041095,4]
[321053276,1711829440348,-500.0,0.00041095,4]
[321053277,1711829440358,-500.0,0.00041095,4]
[321053278,1711829440367,-500.0,0.00041095,4]
[321053279,1711829440376,-500.0,0.00041095,4]
[321053280,1711829440385,-500.0,0.00041095,4]
[321053281,1711829440395,-500.0,0.00041095,4]
[321053282,1711829440407,-500.0,0.00041095,4]
[321053283,1711829440417,-500.0,0.00041095,4]
[321053284,1711829440426,-500.0,0.00041095,4]
[321053285,1711829440435,-500.0,0.00041095,4]
[321053286,1711829440445,-500.0,0.00041095,4]
[321053287,1711829440454,-500.0,0.00041095,4]
[321053288,1711829440463,-500.0,0.00041095,4]
[321053289,1711829440472,-500.0,0.00041095,4]
[321053290,1711829440481,-500.0,0.00041095,4]
[321053291,1711829440490,-500.0,0.00041095,4]
[321053292,1711829440499,-500.0,0.00041095,4]
[321053293,1711829440508,-526.16126517,0.00041095,4]
[321053294,1711829440517,-500.0,0.00041095,4]
[321053295,1711829440527,-293.78742972,0.00041095,4]
[321053296,1711829440536,-500.0,0.00041095,4]
[321053297,1711829440545,-536.34987974,0.00041095,4]
[321053298,1711829440555,-500.0,0.00041095,4]
[321053299,1711829440564,-500.0,0.00041095,4]
[321053300,1711829440573,-233.96037352,0.00041095,4]
[321053301,1711829440583,-500.0,0.00041095,4]
[321053302,1711829440592,-500.0,0.00041095,4]
[321053303,1711829440601,-500.0,0.00041095,4]
[321053304,1711829440610,-500.0,0.00041095,4]
[321053305,1711829440619,-500.0,0.00041095,4]
[321053306,1711829440628,-500.0,0.00041095,4]
[321053307,1711829440637,-500.0,0.00041095,4]
[321053308,1711829440647,-500.0,0.00041095,4]
[321053309,1711829440657,-500.0,0.00041095,4]
[321053310,1711829440666,-500.0,0.00041095,4]
[321053311,1711829440676,-500.0,0.00041095,4]
[321053312,1711829440685,-500.0,0.00041095,4]
[321053313,1711829440695,-500.0,0.00041095,4]
[321053314,1711829440705,-500.0,0.00041095,4]
[321053315,1711829440715,-500.0,0.00041095,4]
[321053316,1711829440725,-500.0,0.00041095,4]
[321053317,1711829440736,-500.0,0.00041095,4]
[321053318,1711829440745,-151.26173334,0.00041095,4]
[321053319,1711829440755,-500.0,0.00041095,4]
[321053320,1711829440765,-669.01,0.00041095,4]
[321053321,1711829440774,-500.0,0.00041095,4]
[321053322,1711829440785,-500.0,0.00041095,4]
[321053323,1711829440794,-500.0,0.00041095,4]
[321053324,1711829440803,-500.0,0.00041095,4]
[321053325,1711829440813,-500.0,0.00041095,4]
[321053326,1711829440822,-413.61720369,0.00041095,4]
[321053327,1711829440832,-500.0,0.00041095,4]
[321053328,1711829440841,-500.0,0.00041095,4]
[321053329,1711829440851,-500.0,0.00041095,4]
[321053330,1711829440862,-500.0,0.00041095,4]
[321053331,1711829440872,-500.0,0.00041095,4]
[321053332,1711829440882,-500.0,0.00041095,4]
[321053333,1711829440892,-500.0,0.00041095,4]
[321053334,1711829440902,-500.0,0.00041095,4]
[321053335,1711829440912,-500.0,0.00041095,4]
[321053336,1711829440920,-500.0,0.00041095,4]
[321053337,1711829440929,-500.0,0.00041095,4]
[321053338,1711829440941,-500.0,0.00041095,4]
[321053339,1711829440950,-500.0,0.00041095,4]
[321053340,1711829440959,-500.0,0.00041095,4]
[321053341,1711829440968,-500.0,0.00041095,4]
[321053342,1711829440977,-510.66870159,0.00041095,4]
[321053343,1711829440987,-500.0,0.00041095,4]
[321053344,1711829440996,-500.0,0.00041095,4]
[321053345,1711829441005,-500.0,0.00041095,4]
[321053346,1711829441015,-500.0,0.00041095,4]
[321053347,1711829441024,-500.0,0.00041095,4]
[321053348,1711829441038,-500.0,0.00041095,4]
[321053349,1711829441047,-500.0,0.00041095,4]
[321053350,1711829441057,-500.0,0.00041095,4]
[321053351,1711829441066,-500.0,0.00041095,4]
[321053352,1711829441076,-500.0,0.00041095,4]
[321053353,1711829441085,-500.0,0.00041095,4]
[321053354,1711829441094,-742.59,0.00041095,4]
[321053355,1711829441103,-500.0,0.00041095,4]
[321053356,1711829441112,-500.0,0.00041095,4]
[321053357,1711829441122,-588.71977094,0.00041095,4]
[321053358,1711829441131,-500.0,0.00041095,4]
[321053359,1711829441140,-607.71169067,0.00041095,4]
[321053360,1711829441149,-500.0,0.00041095,4]
[321053361,1711829441158,-500.0,0.00041095,4]
[321053362,1711829441168,-500.0,0.00041095,4]
[321053363,1711829441177,-638.08,0.00041095,4]
[321053364,1711829441186,-500.0,0.00041095,4]
[321053365,1711829441196,-500.0,0.00041095,4]
[321053366,1711829441206,-540.13,0.00041095,4]
[321053367,1711829441215,-500.0,0.00041095,4]
[321053368,1711829441225,-500.0,0.00041095,4]
[321053369,1711829441234,-500.0,0.00041095,4]
[321053370,1711829441244,-433.83375744,0.00041095,4]
[321053371,1711829441253,-500.0,0.00041095,4]
[321053372,1711829441262,-500.0,0.00041095,4]
[321053373,1711829441272,-618.64323904,0.00041095,4]
[321053374,1711829441285,-785.89,0.00041095,4]
[321053375,1711829441295,-500.0,0.00041095,4]
[321053376,1711829441305,-500.0,0.00041095,4]
[321053377,1711829441316,-500.0,0.00041095,4]
[321053378,1711829441326,-500.0,0.00041095,4]
[321053379,1711829441336,-500.0,0.00041095,4]
[321053380,1711829441346,-599.63,0.00041095,4]
[321053381,1711829441355,-171.38620559,0.00041095,4]
[321053382,1711829441364,-500.0,0.00041095,4]
[321053383,1711829441374,-500.0,0.00041095,4]
[321053384,1711829441382,-606.34,0.00041095,4]
[321053385,1711829441391,-500.0,0.00041095,4]
[321053386,1711829441401,-500.0,0.00041095,4]
[321053387,1711829441410,-500.0,0.00041095,4]
[321053388,1711829441419,-500.0,0.00041095,2]
[321053389,1711829441428,-500.0,0.00041095,4]
[321053390,1711829441437,-500.0,0.00041095,4]
[321053391,1711829441446,-500.0,0.00041095,4]
[321053392,1711829441455,-500.0,0.00041095,4]
[321053393,1711829441465,-500.0,0.00041095,4]
[321053394,1711829441474,-500.0,0.00041095,4]
[321053395,1711829441484,-500.0,0.00041095,4]
[321053396,1711829441493,-500.0,0.00041095,4]
[321053397,1711829441502,-500.0,0.00041095,4]
[321053398,1711829441512,-500.0,0.00041095,4]
[321053399,1711829441521,-540.77939359,0.00041095,4]
[321053400,1711829441533,-500.0,0.00041095,4]
[321053401,1711829441542,-500.0,0.00041095,4]
[321053402,1711829441550,-500.0,0.00041095,4]
[321053403,1711829441559,-500.0,0.00041095,4]
[321053404,1711829441569,-579.89,0.00041095,4]
[321053405,1711829441577,-567.27,0.00041095,4]
[321053406,1711829441586,-500.0,0.00041095,4]
[321053407,1711829441596,-500.0,0.00041095,4]
[321053408,1711829441605,-500.0,0.00041095,4]
[321053409,1711829441614,-150.0,0.00041095,4]
[321053410,1711829441623,-500.0,0.00041095,4]
[321053411,1711829441632,-500.0,0.00041095,4]
[321053412,1711829441642,-500.0,0.00041095,4]
[321053413,1711829441652,-500.0,0.00041095,4]
[321053414,1711829441660,-548.82143132,0.00041095,4]
[321053415,1711829441669,-500.0,0.00041095,4]
[321053416,1711829441679,-500.0,0.00041095,4]
[321053417,1711829441688,-500.0,0.00041095,4]
[321053418,1711829441697,-500.0,0.00041095,4]
[321053419,1711829441706,-500.0,0.00041095,4]
[321053420,1711829441716,-507.12,0.00041095,4]
[321053421,1711829441726,-500.0,0.00041095,4]
[321053422,1711829441735,-500.0,0.00041095,4]
[321053423,1711829441745,-500.0,0.00041095,4]
[321053424,1711829441754,-500.0,0.00041095,4]
[321053425,1711829441763,-500.0,0.00041095,4]
[321053426,1711829441773,-396.5767475,0.00041095,4]
[321053427,1711829441786,-393.95893501,0.00041095,4]
[321053428,1711829441796,-500.0,0.00041095,4]
[321053429,1711829441806,-500.0,0.00041095,4]
[321053430,1711829441817,-518.65521589,0.00041095,4]
[321053431,1711829441827,-500.0,0.00041095,4]
[321053432,1711829441837,-500.0,0.00041095,4]
[321053433,1711829441847,-500.0,0.00041095,4]
[321053434,1711829441857,-500.0,0.00041095,4]
[321053435,1711829441870,-500.0,0.00041095,4]
[321053436,1711829441880,-500.0,0.00041095,4]
[321053437,1711829441890,-546.35,0.00041095,4]
[321053438,1711829441902,-500.0,0.00041095,4]
[321053439,1711829441911,-500.0,0.00041095,4]
[321053440,1711829441921,-500.0,0.00041095,4]
[321053441,1711829441931,-500.0,0.00041095,4]
[321053442,1711829441941,-500.0,0.00041095,4]
[321053443,1711829441951,-500.0,0.00041095,4]
[321053444,1711829441961,-500.0,0.00041095,4]
[321053445,1711829441971,-500.0,0.00041095,4]
[321053446,1711829441982,-500.0,0.00041095,4]
[321053447,1711829441991,-500.0,0.00041095,4]
[321053448,1711829442000,-500.0,0.00041095,4]
[321053449,1711829442009,-500.0,0.00041095,4]
[321053450,1711829442018,-527.61340151,0.00041095,4]
[321053451,1711829442026,-500.0,0.00041095,4]
[321053452,1711829442040,-500.0,0.00041095,4]
[321053453,1711829442049,-500.0,0.00041095,4]
[321053454,1711829442058,-500.0,0.00041095,4]
[321053455,1711829442067,-500.0,0.00041095,4]
[321053456,1711829442076,-500.0,0.00041095,4]
[321053457,1711829442085,-500.0,0.00041095,4]
[321053458,1711829442094,-500.0,0.00041095,4]
[321053459,1711829442104,-500.0,0.00041095,4]
[321053460,1711829442113,-500.0,0.00041095,4]
[321053461,1711829442123,-500.0,0.00041095,4]
[321053462,1711829442132,-502.85,0.00041095,4]
[321053463,1711829442142,-500.0,0.00041095,4]
[321053464,1711829442151,-500.0,0.00041095,4]
[321053465,1711829442160,-1259.78,0.00041095,2]
[321053466,1711829442169,-500.0,0.00041095,4]
[321053467,1711829442178,-500.0,0.00041095,4]
[321053468,1711829442187,-500.0,0.00041095,4]
[321053469,1711829442196,-500.0,0.00041095,4]
[321053470,1711829442205,-500.0,0.00041095,4]
[321053471,1711829442214,-500.0,0.00041095,4]
[321053472,1711829442224,-500.0,0.00041095,4]
[321053473,1711829442233,-500.0,0.00041095,4]
[321053474,1711829442243,-500.0,0.00041095,4]
[321053475,1711829442253,-500.0,0.00041095,4]
[321053476,1711829442263,-500.0,0.00041095,4]
[321053477,1711829442272,-500.0,0.00041095,4]
[321053478,1711829442284,-536.61916661,0.00041095,4]
[321053479,1711829442293,-500.0,0.00041095,4]
[321053480,1711829442303,-500.0,0.00041095,4]
[321053481,1711829442312,-500.0,0.00041095,4]
[321053482,1711829442322,-500.0,0.00041095,4]
[321053483,1711829442332,-500.0,0.00041095,4]
[321053484,1711829442342,-500.0,0.00041095,4]
[321053485,1711829442352,-530.75836251,0.00041095,4]
[321053486,1711829442361,-555.53138112,0.00041095,4]
[321053487,1711829442370,-263.18941521,0.00041095,4]
[321053488,1711829442379,-500.0,0.00041095,4]
[321053489,1711829442388,-500.0,0.00041095,4]
[321053490,1711829442397,-500.0,0.00041095,4]
[321053491,1711829442407,-536.44796409,0.00041095,4]
[321053492,1711829442416,-500.0,0.00041095,4]
[321053493,1711829442425,-500.0,0.00041095,4]
[321053494,1711829442435,-500.0,0.00041095,4]
[321053495,1711829442602,-500.0,0.00041095,4]
[321053496,1711829442637,-500.0,0.00041095,4]
[321053497,1711829442647,-500.0,0.00041095,4]
[321053498,1711829442656,-500.0,0.00041095,4]
[321053499,1711829442666,-670.98,0.00041095,4]
[321053500,1711829442675,-500.0,0.00041095,4]
[321053501,1711829442684,-500.0,0.00041095,4]
[321053502,1711829442694,-500.0,0.00041095,4]
[321053503,1711829442703,-500.0,0.00041095,4]